fUST/lending_fUST_20251103
["ID","MTS","AMOUNT","RATE_DAILY","PERIOD"]
[392876582,1762104639222,-151.0,0.00022117,7]
[392876584,1762104639231,-500.0,0.00022122,7]
[392876586,1762104639240,-500.0,0.00022122,7]
[392876588,1762104639249,-500.0,0.00022122,7]
[392876590,1762104639258,-500.0,0.00022122,7]
[392876592,1762104639268,-153.648193,0.00022122,7]
[392876594,1762104639277,-151.0,0.00022122,7]
[392876596,1762104639286,-151.0,0.00022122,7]
[392876598,1762104639295,-151.0,0.00022122,7]
[392876600,1762104639304,-151.0,0.00022122,7]
[392876602,1762104639313,-151.0,0.00022122,2]
[392876604,1762104639323,-182.216563,0.00022122,7]
[392876605,1762104639332,-182.216563,0.00022122,7]
[392876606,1762104639341,-182.216563,0.00022122,7]
[392876607,1762104639351,-182.216563,0.00022122,7]
[392876608,1762104639360,-151.0,0.00022122,7]
[392876609,1762104639370,-151.0,0.00022122,7]
[392876610,1762104639379,-237.765349,0.00022122,7]
[392876611,1762104639388,-237.765349,0.00022122,7]
[392876612,1762104639398,-237.765349,0.00022122,7]
[392876613,1762104639408,-237.765349,0.00022122,7]
[392876615,1762104639418,-151.0,0.00022122,7]
[392876617,1762104639427,-193.367062,0.00022122,7]
[392876619,1762104639436,-200.729348,0.00022122,7]
[392876621,1762104639445,-198.722475,0.00022122,7]
[392876623,1762104639454,-198.722475,0.00022122,7]
[392876624,1762104639464,-198.722475,0.00022122,7]
[392876625,1762104639473,-198.722475,0.00022122,7]
[392876627,1762104639482,-157.600089,0.00022122,7]
[392876629,1762104639492,-224.69772172,0.00022131,2]
[392876630,1762104639502,-897.89209601,0.00022131,2]
[392876631,1762104639512,-151.0,0.00022131,7]
[392876632,1762104639521,-151.0,0.00022131,2]
[392876633,1762104639530,-182.216563,0.00022131,7]
[392876635,1762104639539,-182.216563,0.00022131,7]
[392876637,1762104639548,-182.216563,0.00022131,7]
[392876639,1762104639558,-182.216563,0.00022131,7]
[392876641,1762104639567,-522.56257021,0.00022131,2]
[392876643,1762104639576,-434.60672722,0.00022131,2]
[392876645,1762104639586,-1738.42690886,0.00022131,2]
[392876646,1762104639595,-3911.46054494,0.00022131,2]
[392876648,1762104639604,-6953.70763546,0.00022131,2]
[392876649,1762104639613,-207.99504073,0.00022131,2]
[392876650,1762104639622,-831.14818277,0.00022131,2]
[392876652,1762104639631,-151.0,0.00022131,7]
[392876653,1762104639640,-208.24,0.00022131,7]
[392876655,1762104639650,-237.765349,0.00022131,7]
[392876657,1762104639661,-237.765349,0.00022131,7]
[392876658,1762104639670,-237.765349,0.00022131,7]
[392876659,1762104639680,-237.765344,0.00022131,7]
[392876660,1762104639688,-151.0,0.00022131,7]
[392876661,1762104639697,-198.722475,0.00022131,7]
[392876662,1762104639707,-198.722475,0.00022131,7]
[392876663,1762104639717,-198.722475,0.00022131,7]
[392876664,1762104639726,-198.72248,0.00022131,7]
[392876665,1762104639735,-151.0,0.00022148,7]
[392876666,1762104639744,-151.0,0.00022148,7]
[392876667,1762104639754,-151.0,0.00022148,7]
[392876668,1762104639763,-500.0,0.00022173,2]
[392876669,1762104639771,-500.0,0.00022173,2]
[392876670,1762104639781,-500.0,0.00022173,2]
[392876671,1762104639790,-498.4,0.000222,2]
[392876672,1762104639799,-150.0,0.0002225,2]
[392876673,1762104639808,-240.0,0.00022295,2]
[392876674,1762104639817,-500.0,0.00022298,7]
[392876675,1762104639826,-500.0,0.00022298,7]
[392876676,1762104639835,-500.0,0.00022298,7]
[392876677,1762104639844,-500.0,0.00022298,7]
[392876678,1762104639854,-151.0,0.00022298,7]
[392876679,1762104639863,-151.0,0.00022298,7]
[392876680,1762104639872,-151.0,0.00022298,7]
[392876681,1762104639881,-151.0,0.00022298,2]
[392876682,1762104639890,-182.216563,0.00022298,7]
[392876683,1762104639900,-182.216563,0.00022298,7]
[392876684,1762104639910,-182.216563,0.00022298,7]
[392876685,1762104639995,-182.216563,0.00022298,7]
[392876686,1762104640006,-151.0,0.00022298,7]
[392876687,1762104640016,-4394.0,0.00022332,2]
[392876688,1762104640025,-498.4,0.000225,2]
[392876689,1762104640035,-240.0,0.00022504,2]
[392876690,1762104640044,-240.0,0.00022512,2]
[392876691,1762104640053,-240.0,0.00022544,2]
[392876692,1762104640062,-168.0,0.00022569,2]
[392876693,1762104640071,-980.94,0.00022636,3]
[392876694,1762104640082,-490.46,0.00022636,3]
[392876696,1762104640091,-500.0,0.000227,7]
[392876698,1762104640099,-500.0,0.000227,7]
[392876699,1762104640109,-500.0,0.000227,7]
[392876700,1762104640120,-500.0,0.000227,7]
[392876701,1762104640129,-498.4,0.000227,2]
[392876702,1762104640137,-160.0,0.00022714,2]
[392876703,1762104640146,-1000.0,0.00022721,2]
[392876704,1762104640155,-837.29104339,0.00022721,2]
[392876705,1762104640164,-240.0,0.00022753,2]
[392876706,1762104640172,-151.0,0.00022892,7]
[392876707,1762104640181,-240.0,0.00022894,2]
[392876708,1762104640191,-498.4,0.000229,2]
[392876709,1762104640199,-240.0,0.00022903,2]
[392876710,1762104640208,-272.840612,0.00022906,2]
[392876711,1762104640217,-351.65210379,0.00023,2]
[392876712,1762104640226,-3000.0,0.00023,2]
[392876713,1762104640235,-151.0,0.00023,7]
[392876714,1762104640244,-151.0,0.00023,7]
[392876715,1762104640252,-261.149007,0.00023,7]
[392876716,1762104640261,-3000.0,0.0002301,2]
[392876717,1762104640270,-3000.0,0.0002302,2]
[392876718,1762104640278,-272.840612,0.00023029,7]
[392876719,1762104640287,-3000.0,0.0002303,2]
[392876720,1762104640296,-272.840612,0.0002303,3]
[392876721,1762104640304,-168.0,0.00023034,2]
[392876722,1762104640313,-3000.0,0.0002304,2]
[392876723,1762104640322,-3000.0,0.0002305,2]
[392876724,1762104640331,-3000.0,0.0002306,2]
[392876725,1762104640339,-151.0,0.0002306,7]
[392876726,1762104640348,-151.0,0.0002306,7]
[392876727,1762104640357,-3000.0,0.0002307,2]
[392876728,1762104640367,-500.0,0.00023073,2]
[392876730,1762104640376,-500.0,0.00023073,2]
[392876732,1762104640386,-500.0,0.00023073,2]
[392876734,1762104640395,-500.0,0.00023073,2]
[392876736,1762104640405,-3000.0,0.0002308,2]
[392876737,1762104640414,-3000.0,0.0002309,2]
[392876738,1762104640423,-151.0,0.0002309,7]
[392876739,1762104640433,-151.0,0.0002309,7]
[392876740,1762104640442,-3000.0,0.000231,2]
[392876742,1762104640451,-151.0,0.000231,6]
[392876743,1762104640461,-3000.0,0.0002311,2]
[392876744,1762104640470,-3000.0,0.0002312,2]
[392876745,1762104640480,-3000.0,0.0002313,2]
[392876746,1762104640488,-420.0,0.00023136,2]
[392876747,1762104640498,-3000.0,0.0002314,2]
[392876748,1762104640507,-500.0,0.00023144,2]
[392876749,1762104640516,-3000.0,0.0002315,2]
[392876750,1762104640525,-3000.0,0.0002316,2]
[392876751,1762104640534,-3000.0,0.0002317,2]
[392876752,1762104640543,-151.0,0.0002317,7]
[392876753,1762104640552,-151.0,0.0002317,7]
[392876754,1762104640562,-500.0,0.00023173,2]
[392876755,1762104640572,-500.0,0.00023173,2]
[392876756,1762104640581,-3000.0,0.0002318,2]
[392876757,1762104640590,-3000.0,0.0002319,2]
[392876758,1762104640599,-3000.0,0.000232,2]
[392876759,1762104640608,-498.4,0.000232,2]
[392876760,1762104640618,-3000.0,0.0002321,2]
[392876761,1762104640627,-3000.0,0.0002322,2]
[392876762,1762104640636,-168.0,0.00023223,2]
[392876763,1762104640646,-3000.0,0.0002323,2]
[392876764,1762104640656,-3000.0,0.0002324,2]
[392876765,1762104640666,-1680.0,0.00023245,2]
[392876766,1762104640675,-3941.324377,0.0002325,2]
[392876767,1762104640684,-168.0,0.00023252,2]
[392876768,1762104640693,-260.0,0.00023262,2]
[392876769,1762104640703,-1500.0,0.00023268,2]
[392876770,1762104640713,-324.1558249,0.00023282,2]
[392876771,1762104640723,-168.43953619,0.00023302,2]
[392876772,1762104640732,-500.0,0.00023306,2]
[392876773,1762104640743,-150.0,0.0002331,2]
[392876774,1762104640753,-240.0,0.00023349,2]
[392876775,1762104640764,-900.57732163,0.00023379,2]
[392876776,1762104640774,-498.4,0.000234,2]
[392876777,1762104640784,-177.02424381,0.00023408,2]
[392876778,1762104640793,-500.0,0.00023408,2]
[392876779,1762104640803,-500.0,0.00023425,2]
[392876780,1762104640813,-500.0,0.00023425,2]
[392876781,1762104640823,-240.0,0.00023483,2]
[392876782,1762104640833,-300.0,0.00023541,20]
[392876783,1762104640842,-300.0,0.00023541,20]
[392876785,1762104640852,-300.0,0.00023541,20]
[392876787,1762104640862,-300.0,0.00023541,20]
[392876788,1762104640871,-300.0,0.00023541,20]
[392876789,1762104640881,-300.0,0.00023541,20]
[392876790,1762104640891,-300.0,0.00023541,20]
[392876792,1762104640900,-300.0,0.00023541,20]
[392876793,1762104640909,-300.0,0.00023541,20]
[392876794,1762104640918,-300.0,0.00023541,20]
[392876795,1762104640927,-300.0,0.00023541,20]
[392876796,1762104640936,-300.0,0.00023541,20]
[392876797,1762104640946,-300.0,0.00023541,20]
[392876798,1762104640955,-300.0,0.00023541,20]
[392876799,1762104640965,-300.0,0.00023541,20]
[392876800,1762104640974,-240.0,0.00023562,2]
[392876801,1762104640983,-168.0,0.00023594,2]
[392876802,1762104640993,-151.0,0.00023601,7]
[392876803,1762104641002,-168.0,0.00023615,2]
[392876804,1762104641011,-1000.0,0.00023621,2]
[392876805,1762104641021,-1000.0,0.00023621,2]
[392876806,1762104641030,-1000.0,0.00023621,2]
[392876807,1762104641038,-1000.0,0.00023621,2]
[392876808,1762104641047,-240.0,0.00023632,2]
[392876809,1762104641057,-600.0,0.00023653,20]
[392876810,1762104641067,-168.0,0.00023675,2]
[392876811,1762104641076,-1000.0,0.00023692,2]
[392876812,1762104641087,-1000.0,0.00023721,2]
[392876813,1762104641097,-1000.0,0.00023721,2]
[392876814,1762104641106,-25443.61,0.000238,7]
[392876815,1762104641118,-360.0,0.0002381,2]
[392876816,1762104641128,-1025.10056905,0.00023816,2]
[392876817,1762104641137,-168.0,0.00023825,2]
[392876818,1762104641146,-272.840612,0.00023842,7]
[392876819,1762104641157,-188.72588809,0.00023854,2]
[392876820,1762104641166,-600.0,0.00023904,2]
[392876821,1762104641175,-1000.0,0.00023956,2]
[392876822,1762104641259,-508.73394242,0.00023973,2]
[392876823,1762104641269,-705.14686264,0.00024,60]
[392876824,1762104641278,-1500.0,0.00024,2]
[392876825,1762104641289,-1500.0,0.00024,2]
[392876826,1762104641299,-1502.67,0.00024,2]
[392876827,1762104641308,-168.0,0.00024013,2]
[392876828,1762104641317,-8554.73,0.00024033,2]
[392876829,1762104641326,-10786.7,0.00024033,2]
[392876830,1762104641336,-835.814,0.00024057,2]
[392876831,1762104641345,-600.0,0.00024153,2]
[392876832,1762104641355,-1500.0,0.0002424,2]
[392876833,1762104641365,-272.840612,0.00024245,5]
[392876834,1762104641376,-460.0,0.00024358,2]
[392876835,1762104641386,-272.840612,0.00024365,3]
[392876836,1762104641397,-327.36,0.000244,14]
[392876837,1762104641407,-600.0,0.00024402,2]
[392876838,1762104641417,-900.57732163,0.00024543,2]
[392876839,1762104641427,-600.0,0.00024651,2]
[392876840,1762104641436,-272.840612,0.00024655,7]
[392876841,1762104641447,-151.0,0.00024658,2]
[392876842,1762104641456,-151.0,0.00024713,2]
[392876843,1762104641466,-198.0,0.00024768,2]
[392876844,1762104641475,-2000.0,0.00024788,2]
[392876845,1762104641484,-150.0,0.00024873,2]
[392876846,1762104641495,-353005.546939,0.000249,2]
[392876847,1762104641504,-12922.67462695,0.000249,2]
[392876848,1762104641513,-600.0,0.000249,2]
[392876849,1762104641522,-560.0,0.00024906,2]
[392876850,1762104641532,-500.0,0.00024973,2]
[392876851,1762104641543,-150.0,0.00024973,2]
[392876852,1762104641552,-3249.75579102,0.00025,5]
[392876853,1762104641562,-1000.684,0.00025,3]
[392876854,1762104641572,-2007.68991225,0.00025,2]
[392876855,1762104641581,-792.35228523,0.00025,2]
[392876856,1762104641590,-63603.72768527,0.00025,2]
[392876857,1762104641610,-1242.76900197,0.00025,2]
[392876858,1762104641671,-6928.56872215,0.00022,7]
[392876859,1762104641683,-875.59919563,0.00022,7]
[392876881,1762104645171,5432.39007226,0.00021176,2]
[392876900,1762104646477,-753.54347922,0.00022,7]
[392876901,1762104646487,-8557.711397,0.00022,7]
[392876902,1762104646496,-8557.711397,0.00022,7]
[392876903,1762104646505,-8557.711397,0.00022,7]
[392876904,1762104646514,-8557.711397,0.00022,7]
[392876905,1762104646524,-8557.711397,0.00022,7]
[392876906,1762104646533,-8557.711397,0.00022,7]
[392876907,1762104646542,-8557.711397,0.00022,7]
[392876908,1762104646551,-8557.711397,0.00022122,7]
[392876909,1762104646560,-8557.711397,0.00022122,7]
[392876910,1762104646569,-8557.711397,0.00022122,7]
[392876911,1762104646578,-8557.711397,0.00022122,7]
[392876912,1762104646587,-8557.711397,0.00022131,7]
[392876913,1762104646596,-8557.711397,0.00022131,7]
[392876914,1762104646605,-8557.711397,0.00022131,7]
[392876915,1762104646614,-8557.711397,0.00022131,7]
[392876916,1762104646625,-8557.711397,0.00022298,7]
[392876917,1762104646635,-8557.711397,0.00022298,7]
[392876918,1762104646644,-8557.711397,0.00022298,7]
[392876919,1762104646654,-2163.0,0.00022311,2]
[392876920,1762104646664,-6491.41542453,0.00025,2]
[392876921,1762104646673,-88759.57376045,0.00025,15]
[392876922,1762104646682,-1037.07578067,0.00025,7]
[392876923,1762104646691,-882.25619232,0.00025149,2]
[392876924,1762104646701,-587.0,0.0002516,2]
[392876925,1762104646710,-272.840612,0.00025231,2]
[392876926,1762104646719,-272.840612,0.00025263,5]
[392876927,1762104646728,-373.60332361,0.00025282,2]
[392876928,1762104646737,-2163.0,0.00025311,2]
[392876929,1762104646745,-500.0,0.00025336,2]
[392876930,1762104646755,-2351.0,0.00025398,2]
[392876931,1762104646764,-300.0,0.00025421,2]
[392876932,1762104646773,-660.0,0.00025454,2]
[392876933,1762104646782,-272.840612,0.00025467,7]
[392876934,1762104646791,-472.90547166,0.00025517,20]
[392876935,1762104646801,-502.25585983,0.00025521,2]
[392876936,1762104646811,-250.0,0.00025521,2]
[392876937,1762104646820,-25443.61,0.000256,7]
[392876938,1762104646829,-272.840612,0.00025699,3]
[392876939,1762104646838,-900.57732163,0.00025706,3]
[392876940,1762104646847,-153.0,0.000259,2]
[392876941,1762104646856,-153.0,0.000259,2]
[392876942,1762104646865,-153.0,0.00025902,2]
[392876943,1762104646874,-153.0,0.00025902,2]
[392876944,1762104646883,-153.0,0.00025902,2]
[392876945,1762104646892,-153.0,0.00025902,2]
[392876946,1762104646901,-153.0,0.00025902,2]
[392876947,1762104646910,-451.05641397,0.00025968,2]
[392876948,1762104646919,-161.0,0.00026,5]
[392876949,1762104646928,-760.0,0.00026002,2]
[392876950,1762104646938,-720.0,0.00026018,20]
[392876951,1762104646947,-301.9502093,0.00026068,2]
[392876952,1762104646957,-21274.12388174,0.0002611,2]
[392876953,1762104646967,-272.840612,0.0002628,5]
[392876954,1762104646976,-272.840612,0.0002628,7]
[392876955,1762104646986,-327.36,0.000263,14]
[392876956,1762104646995,-10000.0,0.0002634,2]
[392876957,1762104647005,-5000.0,0.00026391,2]
[392876958,1762104647014,-8770.0,0.000264,2]
[392876959,1762104647023,-10000.0,0.0002642,2]
[392876960,1762104647032,-817.6612136,0.00026438,2]
[392876961,1762104647041,-272.840612,0.0002646,10]
[392876962,1762104647050,-160.0,0.00026487,2]
[392876963,1762104647060,-160.0,0.00026487,2]
[392876964,1762104647069,-404.09107657,0.00026487,2]
[392876965,1762104647078,-79.94939892,0.00026487,2]
[392876969,1762104650585,4497.38536268,0.00021176,2]
[392876970,1762104650607,10000.01,0.00021176,2]
[392876971,1762104650628,10000.01,0.00021176,2]
[392876972,1762104650649,10000.01,0.00021176,2]
[392876973,1762104650670,10000.01,0.00021176,2]
[392876974,1762104650776,10000.01,0.00021176,2]
[392876975,1762104650827,10000.01,0.00021176,2]
[392876976,1762104650848,10000.01,0.00021176,2]
[392876977,1762104650869,10000.01,0.00021176,2]
[392876978,1762104650890,10000.01,0.00021176,2]
[392876979,1762104662837,300.0,0.00021175,2]
[392876980,1762104670531,4999.97908824,0.00021176,2]
[392876988,1762104672964,200122.57965935,0.0003775,30]
[392877004,1762104693586,3000.41225478,0.00021175,2]
[392877005,1762104703337,151.164,0.00020752,2]
[392877007,1762104722704,300.0,0.00021175,2]
[392877011,1762104726413,164.21961969,0.00021175,2]
[392877013,1762104756177,181.24108886,0.00021175,2]
[392877014,1762104757034,500.0,0.00021175,2]
[392877015,1762104757061,500.0,0.00021175,2]
[392877016,1762104757088,202.99394843,0.00021175,2]
[392877017,1762104757111,297.00605157,0.00021175,2]
[392877018,1762104757138,500.0,0.00021175,2]
[392877019,1762104757167,516.64486529,0.00021175,2]
[392877020,1762104757192,500.0,0.00021175,2]
[392877021,1762104757331,227.75913759,0.00021175,2]
[392877022,1762104757367,617.08808309,0.00021175,2]
[392877023,1762104757395,491.98616846,0.00021175,2]
[392877024,1762104757469,500.0,0.00021175,2]
[392877025,1762104761250,1200.0,0.00021175,2]
[392877027,1762104782551,300.0,0.00021175,2]
[392877029,1762104791364,4849.525694,0.00021125,2]
[392877030,1762104791385,1201.70448992,0.00021125,2]
[392877031,1762104801112,645.88,0.00021166,10]
[392877032,1762104842782,300.0,0.00021175,2]
[392877033,1762104872218,179.67645368,0.00021175,2]
[392877034,1762104872254,165.77624094,0.00021175,2]
[392877037,1762104901619,300.0,0.00021175,2]
[392877038,1762104902011,300.0,0.00021175,2]
[392877039,1762104902139,300.0,0.00021175,2]
[392877040,1762104902253,300.0,0.00021175,2]
[392877041,1762104905401,5935.2261629,0.00021125,2]
[392877042,1762104907693,300.0,0.00021175,2]
[392877043,1762104909078,151.0,0.00037695,60]
[392877044,1762104909688,156.587,0.00037695,60]
[392877045,1762104910330,162.380719,0.00037695,60]
[392877046,1762104910926,168.3888056,0.00037695,60]
[392877047,1762104911186,71.74665256,0.00021175,2]
[392877048,1762104911208,1128.25334744,0.00021175,2]
[392877049,1762104911524,174.61919141,0.00037695,60]
[392877050,1762104912138,181.08010149,0.00037695,60]
[392877051,1762104912926,187.78006525,0.00037695,60]
[392877052,1762104913372,194.72792766,0.00037695,60]
[392877053,1762104914538,201.93286099,0.00037695,60]
[392877054,1762104915210,209.40437684,0.00037695,60]
[392877055,1762104915806,217.15233878,0.00037695,60]
[392877056,1762104916460,225.18697532,0.00037695,60]
[392877057,1762104917060,233.51889341,0.00037695,60]
[392877058,1762104917694,242.15909246,0.00037695,60]
[392877059,1762104918309,251.11897888,0.00037695,60]
[392877060,1762104918941,251.11897888,0.00037695,60]
[392877061,1762104920867,8871.75665256,0.00021,2]
[392877062,1762104920889,10000.01,0.00021,2]
[392877063,1762104920911,10000.01,0.00021,2]
[392877064,1762104929479,5000.0,0.00021,3]
[392877065,1762104937267,741.06533478,0.00021,3]
[392877066,1762104962436,300.0,0.00020999,2]
[392877070,1762105022309,300.0,0.00020999,2]
[392877072,1762105061136,297.0,0.00020999,2]
[392877073,1762105082423,300.0,0.00020999,2]
[392877074,1762105130068,4258.93466522,0.00021,2]
[392877075,1762105142602,300.0,0.00020999,2]
[392877134,1762105202184,300.0,0.00020999,2]
[392877147,1762105207275,-261.23552459,0.00021,2]
[392877169,1762105213299,-1200.0,0.00020999,2]
[392877211,1762105222525,-4597.25589358,0.0002079,2]
[392877380,1762105262391,300.0,0.00020999,2]
[392877461,1762105279486,29772.95,0.00037687,60]
[392877552,1762105300021,999.0,0.00020181,2]
[392877568,1762105303386,156.371,0.00020752,2]
[392877593,1762105308149,500.0,0.00037687,60]
[392877594,1762105308428,500.0,0.00037687,60]
[392877596,1762105308638,500.0,0.00037687,60]
[392877599,1762105308754,500.0,0.00037687,60]
[392877600,1762105308879,500.0,0.00037687,60]
[392877601,1762105308910,500.0,0.00037687,60]
[392877603,1762105309162,500.0,0.00037687,60]
[392877604,1762105309194,500.0,0.00037687,60]
[392877605,1762105309226,500.0,0.00037687,60]
[392877606,1762105309257,500.0,0.00037687,60]
[392877607,1762105309290,500.0,0.00037687,60]
[392877608,1762105309324,599.27,0.00037687,60]
[392877609,1762105309357,500.0,0.00037687,60]
[392877610,1762105309390,500.0,0.00037687,60]
[392877611,1762105309467,500.0,0.00037687,60]
[392877612,1762105309500,500.0,0.00037687,60]
[392877613,1762105309554,599.27,0.00037687,60]
[392877614,1762105309586,500.0,0.00037687,60]
[392877615,1762105309619,500.0,0.00037687,60]
[392877616,1762105309693,500.0,0.00037687,60]
[392877617,1762105309724,500.0,0.00037687,60]
[392877618,1762105309828,599.27,0.00037687,60]
[392877619,1762105309858,500.0,0.00037687,60]
[392877620,1762105309888,500.0,0.00037687,60]
[392877621,1762105309932,500.0,0.00037687,60]
[392877622,1762105309961,500.0,0.00037687,60]
[392877623,1762105310037,599.27,0.00037687,60]
[392877624,1762105310068,500.0,0.00037687,60]
[392877625,1762105310098,500.0,0.00037687,60]
[392877626,1762105310182,500.0,0.00037687,60]
[392877627,1762105310212,500.0,0.00037687,60]
[392877628,1762105310243,500.0,0.00037687,60]
[392877629,1762105310296,500.0,0.00037687,60]
[392877630,1762105310344,500.0,0.00037687,60]
[392877631,1762105310376,599.27,0.00037687,60]
[392877632,1762105310489,500.0,0.00037687,60]
[392877633,1762105310537,500.0,0.00037687,60]
[392877635,1762105310567,500.0,0.00037687,60]
[392877636,1762105310643,599.27,0.00037687,60]
[392877637,1762105310745,500.0,0.00037687,60]
[392877638,1762105310775,500.0,0.00037687,60]
[392877639,1762105310804,500.0,0.00037687,60]
[392877641,1762105310882,599.27,0.00037687,60]
[392877642,1762105310984,500.0,0.00037687,60]
[392877644,1762105311024,500.0,0.00037687,60]
[392877645,1762105311053,500.0,0.00037687,60]
[392877646,1762105311136,599.27,0.00037687,60]
[392877648,1762105311217,500.0,0.00037687,60]
[392877649,1762105311270,500.0,0.00037687,60]
[392877650,1762105311300,500.0,0.00037687,60]
[392877651,1762105311390,599.27,0.00037687,60]
[392877653,1762105311450,500.0,0.00037687,60]
[392877654,1762105311516,213.8,0.00037687,60]
[392877655,1762105311609,245.70983102,0.00037687,60]
[392877656,1762105311640,599.27,0.00037687,60]
[392877657,1762105311754,500.0,0.00037687,60]
[392877659,1762105311905,599.27,0.00037687,60]
[392877660,1762105312026,500.0,0.00037687,60]
[392877662,1762105312152,599.27,0.00037687,60]
[392877663,1762105312263,500.0,0.00037687,60]
[392877665,1762105312400,599.27,0.00037687,60]
[392877666,1762105312494,500.0,0.00037687,60]
[392877670,1762105312676,599.27,0.00037687,60]
[392877673,1762105313025,500.0,0.00037687,60]
[392877675,1762105313081,599.27,0.00037687,60]
[392877676,1762105313133,500.0,0.00037687,60]
[392877677,1762105313165,500.0,0.00037687,60]
[392877678,1762105313198,599.27,0.00037687,60]
[392877679,1762105313231,500.0,0.00037687,60]
[392877680,1762105313374,500.0,0.00037687,60]
[392877682,1762105313408,599.27,0.00037687,60]
[392877683,1762105313440,500.0,0.00037687,60]
[392877684,1762105313472,500.0,0.00037687,60]
[392877686,1762105313625,214.14109111,0.00037687,60]
[392877688,1762105313659,599.27,0.00037687,60]
[392877689,1762105313690,500.0,0.00037687,60]
[392877690,1762105313721,500.0,0.00037687,60]
[392877692,1762105313928,500.0,0.00037687,60]
[392877693,1762105313976,599.27,0.00037687,60]
[392877694,1762105314022,500.0,0.00037687,60]
[392877696,1762105314194,500.0,0.00037687,60]
[392877697,1762105314235,500.0,0.00037687,60]
[392877698,1762105314279,599.27,0.00037687,60]
[392877700,1762105314324,500.0,0.00037687,60]
[392877703,1762105314443,500.0,0.00037687,60]
[392877704,1762105314486,500.0,0.00037687,60]
[392877705,1762105314527,599.27,0.00037687,120]
[392877706,1762105314564,500.0,0.00037687,60]
[392877707,1762105314670,645.90984329,0.00037687,60]
[392877709,1762105314706,500.0,0.00037687,60]
[392877710,1762105314756,599.27,0.00037687,120]
[392877711,1762105314794,500.0,0.00037687,60]
[392877712,1762105314911,500.0,0.00037687,60]
[392877714,1762105315017,599.27,0.00037687,120]
[392877715,1762105315057,500.0,0.00037687,60]
[392877717,1762105315273,599.42560398,0.00037687,120]
[392877718,1762105315312,500.0,0.00037687,60]
[392877721,1762105315520,500.0,0.00037687,60]
[392877725,1762105315747,500.0,0.00037687,60]
[392877726,1762105315973,500.0,0.00037687,60]
[392877728,1762105316208,500.0,0.00037687,60]
[392877729,1762105316310,500.0,0.00037687,60]
[392877731,1762105316443,500.0,0.00037687,60]
[392877733,1762105316540,500.0,0.00037687,60]
[392877737,1762105316843,500.0,0.00037687,60]
[392877738,1762105316890,500.0,0.00037687,60]
[392877739,1762105316922,500.0,0.00037687,60]
[392877741,1762105317072,500.0,0.00037687,60]
[392877743,1762105317298,500.0,0.00037687,60]
[392877744,1762105317552,500.0,0.00037687,60]
[392877745,1762105317837,500.0,0.00037687,60]
[392877746,1762105317926,500.0,0.00037687,60]
[392877747,1762105318114,500.0,0.00037687,60]